[Event "SWE-ch Masters 2018"]
[Site "Ronneby"]
[Date "2018.07.05"]
[Round "6"]
[White "Palmblad, Jan Peter"]
[Black "Svorono, Gabriel"]
[Result "1-0"]
[ECO "B32"]
[WhiteElo "2099"]
[BlackElo "2105"]
[Annotator "NA"]
[PlyCount "105"]
[EventDate "2018.06.30"]
[EventType "tourn"]
[EventCountry "SWE"]
[SourceTitle "playchess.com"]
[Source "ChessBase"]
[SourceQuality "1"]
[TimeControl "40/5400+30:1800+30"]

1. e4 {[%emt 0:00:00]} c5 {[%emt 0:00:00]} 2. Nf3 {[%emt 0:00:00]} Nc6 {[%emt 0:00:00]} 3. d4 {[%emt 0:00:07]} cxd4 {[%emt 0:00:00]} 4. Nxd4 {[%emt 0:00:06]} Qb6 {[%emt 0:00:01]} 5. Nb3 {[%emt 0:00:41]} Nf6 {[%emt 0:00:15]} 6. Nc3 {[%emt 0:00:37]} e6 {[%emt 0:00:08]} 7. a3 {[%emt 0:07:23]} Be7 {[%emt 0:00:43]} 8. Be3 {[%emt 0:00:53]} Qc7 {[%emt 0:00:04]} 9. f4 {[%emt 0:04:06]} d6 {[%emt 0:00:12] B33: Sicilian: Pelikan and Sveshnikov Variations} 10. Be2 {[%emt 0:03:04] LiveBook: 4 Games} a6 {[%emt 0:00:12]} 11. Bf3 {[%emt 0:09:41]} b5 {[%emt 0:05:04]} 12. g4 {[%emt 0:05:15]} Bb7 {[%emt 0:02:36]} 13. g5 {[%emt 0:07:52]} Nd7 {[%emt 0:00:09] [#]} 14. f5 $146 {[%emt 0:00:28]} ({White should try} 14. h4 $11) ({Predecessor:} 14. Qe2 Nb6 15. a4 Nxa4 16. Nxa4 bxa4 17. Rxa4 O-O 18. O-O {½-½ (55) Baramidze,D (2561)-Korneev,O (2606) Austria 2007}) 14... Nde5 {[%emt 0:02:28]} 15. fxe6 {[%emt 0:00:15]} (15. Be2 $11) 15... fxe6 {[%emt 0:00:34]} 16. Bh5+ {[%emt 0:00:36]} g6 {[%emt 0:01:12]} 17. Bg4 {[%emt 0:00:20]} Nxg4 {[%emt 0:02:35]} (17... Nc4 $17 18. Bc1 Bc8) 18. Qxg4 {[%emt 0:00:09]} Qd7 {[%emt 0:00:45]} 19. O-O-O {[%emt 0:00:29]} Ne5 {[%emt 0:00:36]} 20. Qh3 {[%emt 0:02:41]} Nc4 {[%emt 0:12:30]} 21. Nc5 {[%emt 0:28:16]} Qc8 {[%emt 0:03:54]} 22. Nxb7 {[%emt 0:00:54]} Qxb7 {[%emt 0:01:54]} 23. e5 $2 {[%emt 0:00:20]} (23. Rd3 $11 {and White is okay.}) 23... Nxe3 $14 {[%emt 0:01:41]} (23... b4 $19 24. exd6 bxc3) 24. Qxe3 {[%emt 0:04:15]} d5 {[%emt 0:00:11]} 25. Rhf1 {[%emt 0:00:36]} b4 {[%emt 0:09:04]} 26. axb4 {[%emt 0:01:42]} Qxb4 {[%emt 0:00:16]} 27. Rd4 {[%emt 0:08:15]} Bc5 {[%emt 0:05:50]} 28. Rxb4 {[%emt 0:00:41]} Bxe3+ {[%emt 0:00:09]} 29. Kd1 {[%emt 0:00:19]} O-O-O {[%emt 0:04:07]} 30. Rf7 {[%emt 0:01:29]} Rd7 {[%emt 0:03:55]} 31. Rxd7 {[%emt 0:00:09]} Kxd7 {[%emt 0:00:04]} 32. Rb7+ {[%emt 0:00:07]} Kc8 {[%emt 0:00:33]} 33. Re7 {[%emt 0:00:07]} Bxg5 {[%emt 0:00:43]} 34. Rxe6 {[%emt 0:00:04]} Rf8 {[%emt 0:00:30]} 35. Ke2 {[%emt 0:04:11]} Rf4 {[%emt 0:02:21]} 36. Nxd5 {[%emt 0:00:40]} Rh4 {[%emt 0:00:09]} 37. Nb6+ {[%emt 0:07:05]} Kb7 {[%emt 0:00:58]} 38. c4 {[%emt 0:01:29]} Rxh2+ {[%emt 0:00:27]} 39. Kd3 {[%emt 0:00:05]} Rxb2 {[%emt 0:01:46]} 40. Nd5 {[%emt 0:01:19]} Rb1 {[%emt 0:06:49]} 41. Rd6 {[%emt 0:30:46]} Rd1+ {[%emt 0:30:40]} 42. Kc3 {[%emt 0:00:34]} Rc1+ {[%emt 0:01:28]} 43. Kb4 {[%emt 0:00:14]} a5+ {[%emt 0:04:27]} 44. Kc5 {[%emt 0:00:13]} a4 {[%emt 0:01:37]} 45. Rd7+ {[%emt 0:01:01]} Kb8 {[%emt 0:01:16]} 46. Rxh7 {[%emt 0:00:00]} a3 {[%emt 0:00:00]} 47. Nb4 {[%emt 0:00:00]} Kc8 {[%emt 0:00:00]} 48. e6 {[%emt 0:00:00]} a2 {[%emt 0:00:00]} 49. Nxa2 {[%emt 0:00:00]} Re1 {[%emt 0:00:00]} 50. Kd5 {[%emt 0:00:00]} Rd1+ {[%emt 0:00:00]} 51. Kc6 {[%emt 0:00:00]} Kd8 {[%emt 0:00:00]} 52. Nb4 {[%emt 0:00:00]} Re1 {[%emt 0:00:00]} 53. Rh8+ {[%emt 0:00:15]} 1-0

[Event "SWE-ch Masters 2018"]
[Site "Ronneby"]
[Date "2018.07.05"]
[Round "6"]
[White "Mattsson, Michael"]
[Black "Nordahl, Nils"]
[Result "1-0"]
[ECO "B53"]
[WhiteElo "2032"]
[BlackElo "1839"]
[Annotator "NA"]
[PlyCount "61"]
[EventDate "2018.06.30"]
[EventType "tourn"]
[EventCountry "SWE"]
[SourceTitle "playchess.com"]
[Source "ChessBase"]
[SourceQuality "1"]
[TimeControl "40/5400+30:1800+30"]

{[%evp 20,53,81,83,59,56,32767,82,84,32767,100,69,88,62,102,100,113,103,100,101,32767,97,32767,43,32767,32767,32767,32767,32767,54,32767,32767,108,106,113,134]} 1. e4 {[%emt 0:02:11]} c5 {[%emt 0:00:00]} 2. Nf3 {[%emt 0:00:14]} d6 {[%emt 0:00:24]} 3. d4 {[%emt 0:00:06]} cxd4 {[%emt 0:00:04]} 4. Qxd4 {[%emt 0:00:05]} Nc6 {[%emt 0:01:02]} 5. Bb5 {[%emt 0:00:06]} Bd7 {[%emt 0:00:20]} 6. Bxc6 {[%emt 0:00:05]} Bxc6 {[%emt 0:00:48]} 7. Nc3 {[%emt 0:00:07]} e5 {[%emt 0:01:21]} 8. Qd3 {[%emt 0:01:04]} Nf6 {[%emt 0:01:27]} 9. O-O {[%emt 0:00:35]} Be7 {[%emt 0:00:07]} 10. Bg5 {[%emt 0:04:56]} h6 {[%emt 0:03:58] B53: Sicilian: 2...d6: Lines with Qxd4} (10... O-O 11. Bxf6 Bxf6 12. Nd2 Qe7 13. Nc4 Rfd8 14. Ne3 Rac8 15. Ned5 Qe6 16. a4 Be7 17. Rfd1 Bf8 18. Qe3 Bxd5 19. Rxd5 a6 {1-0 (63) Zajic,M (2499)-Radic,B (2222) Bosna 2017}) 11. Bxf6 $1 {[%emt 0:01:07]} Bxf6 {[%emt 0:00:19]} 12. Nd2 {[%emt 0:00:05]} Qc7 {[%emt 0:01:26]} 13. Nc4 {[%emt 0:00:40]} Be7 {[%emt 0:01:08]} 14. Rfd1 {[%emt 0:02:58]} Rd8 {[%emt 0:01:28]} 15. Ne3 {[%emt 0:00:19]} O-O {[%emt 0:01:43]} 16. a4 $146 {[%emt 0:02:26]} ({Predecessor:} 16. Ncd5 Qd7 17. Nf5 Bxd5 18. Qxd5 {0-1 (46) Gruermann,M (2104)-Werthebach,F (2161) Germany 2010}) 16... a6 {[%emt 0:03:45]} 17. b4 {[%emt 0:09:31]} Bg5 {[%emt 0:20:22]} 18. Ned5 {[%emt 0:03:16]} Bxd5 {[%emt 0:03:30]} 19. Nxd5 {[%emt 0:00:20]} Qd7 {[%emt 0:01:08]} 20. Qb3 {[%emt 0:03:07]} Kh8 {[%emt 0:01:23]} 21. Rd3 {[%emt 0:00:26]} f5 {[%emt 0:01:38]} 22. f3 {[%emt 0:03:29]} fxe4 {[%emt 0:01:42]} 23. fxe4 {[%emt 0:00:07]} Qf7 {[%emt 0:09:46]} 24. Rf3 {[%emt 0:01:10]} Qg6 {[%emt 0:00:50]} 25. Raf1 {[%emt 0:01:20]} Rxf3 {[%emt 0:00:54]} 26. Qxf3 {[%emt 0:00:30]} Rc8 {[%emt 0:01:14]} 27. Qg4 $16 {[%emt 0:04:33]} Qe8 {[%emt 0:08:30]} 28. h4 {[%emt 0:01:39]} Bd2 {[%emt 0:01:23]} 29. Ne7 {[%emt 0:04:44]} Be3+ {[%emt 0:03:56]} 30. Kh2 {[%emt 0:09:35]} Bf4+ {[%emt 0:03:32]} 31. Rxf4 {[%emt 0:03:26]} 1-0

[Event "SWE-ch Masters 2018"]
[Site "Ronneby"]
[Date "2018.07.05"]
[Round "6"]
[White "Carlsson, Andreas"]
[Black "Tegler, Erik"]
[Result "1-0"]
[ECO "E11"]
[WhiteElo "2029"]
[BlackElo "2073"]
[Annotator "NA"]
[PlyCount "79"]
[EventDate "2018.06.30"]
[EventType "tourn"]
[EventCountry "SWE"]
[SourceTitle "playchess.com"]
[Source "ChessBase"]
[SourceQuality "1"]
[TimeControl "40/5400+30:1800+30"]

1. Nf3 {[%emt 0:00:00]} Nf6 {[%emt 0:00:00]} 2. c4 {[%emt 0:00:08]} e6 {[%emt 0:00:00]} 3. d4 {[%emt 0:00:31]} Bb4+ {[%emt 0:00:01]} 4. Bd2 {[%emt 0:00:24]} a5 {[%emt 0:00:17]} 5. g3 {[%emt 0:02:06]} O-O {[%emt 0:01:23]} 6. Bg2 {[%emt 0:00:19]} d6 {[%emt 0:01:48]} 7. O-O {[%emt 0:00:30]} Bxd2 {[%emt 0:00:24] E11: Bogo-Indian} 8. Qxd2 {[%emt 0:05:27]} Qe7 {[%emt 0:00:29] LiveBook: 44 Games} (8... b6 9. Nc3 Bb7 10. Qc2 Nbd7 11. e4 e5 12. Rad1 Re8 13. dxe5 dxe5 14. Bh3 Qe7 15. Nd5 Nxd5 16. exd5 {½-½ (75) Nyback,T (2610)-Neiksans,A (2570) Finland 2015}) 9. Nc3 {[%emt 0:00:09]} Nbd7 {[%emt 0:01:35]} 10. Rfe1 {[%emt 0:01:44]} h6 $146 {[%emt 0:14:10]} ({Predecessor:} 10... e5 11. e4 c6 12. b3 {½-½ (12) Laketic,G (2370)-Dushyant,S (2219) Novi Sad 2017}) 11. h4 {[%emt 0:00:52]} e5 {[%emt 0:04:04]} 12. e3 {[%emt 0:01:00]} c6 {[%emt 0:03:22]} 13. e4 {[%emt 0:15:24]} Nb6 {[%emt 0:04:11]} 14. b3 {[%emt 0:00:48]} Bg4 {[%emt 0:08:15]} 15. Nh2 {[%emt 0:01:52]} Bh5 {[%emt 0:02:05]} 16. Qe3 {[%emt 0:13:04]} Qc7 {[%emt 0:03:15]} 17. f4 {[%emt 0:07:28]} Nbd7 {[%emt 0:04:34]} 18. Bh3 {[%emt 0:03:27]} exf4 {[%emt 0:02:44]} 19. gxf4 {[%emt 0:03:02]} Rfe8 $14 {[%emt 0:04:11]} 20. e5 {[%emt 0:02:14]} d5 {[%emt 0:08:48]} 21. Qg3 {[%emt 0:03:46]} Nh7 {[%emt 0:00:30]} 22. cxd5 {[%emt 0:01:05]} cxd5 {[%emt 0:01:03]} 23. Nxd5 {[%emt 0:00:40]} Qd8 {[%emt 0:01:20]} 24. Ne3 {[%emt 0:06:34]} Ra6 {[%emt 0:00:59]} 25. f5 {[%emt 0:02:29]} Kh8 {[%emt 0:01:35]} 26. Kh1 {[%emt 0:02:32]} a4 {[%emt 0:02:17]} 27. Ng2 {[%emt 0:02:54]} Rg8 {[%emt 0:03:40]} 28. Nf4 {[%emt 0:01:06]} g6 {[%emt 0:00:20]} 29. Qf2 {[%emt 0:02:40]} axb3 {[%emt 0:02:05]} 30. axb3 {[%emt 0:00:18]} Rxa1 {[%emt 0:00:40]} 31. Rxa1 {[%emt 0:00:06]} Nb6 {[%emt 0:01:22]} 32. Bg2 {[%emt 0:00:33]} Qc8 {[%emt 0:01:10]} 33. f6 {[%emt 0:02:20]} Qc3 {[%emt 0:02:13]} 34. Rg1 {[%emt 0:02:06]} Qxb3 {[%emt 0:01:28]} 35. Nxh5 {[%emt 0:02:02]} gxh5 {[%emt 0:00:04]} 36. Be4 {[%emt 0:07:57]} Nf8 {[%emt 0:08:18]} 37. Rxg8+ {[%emt 0:01:24]} Kxg8 {[%emt 0:00:01]} 38. Qg2+ {[%emt 0:01:22]} Ng6 {[%emt 0:00:08]} 39. Bxg6 {[%emt 0:00:15]} Qd1+ {[%emt 0:00:04]} 40. Nf1 {[%emt 0:00:18]} 1-0

[Event "SWE-ch Masters 2018"]
[Site "Ronneby"]
[Date "2018.07.05"]
[Round "6"]
[White "Lindvall, Johannes"]
[Black "Laksman, Efraim"]
[Result "0-1"]
[ECO "B31"]
[WhiteElo "2010"]
[BlackElo "2184"]
[Annotator "NA"]
[PlyCount "58"]
[EventDate "2018.06.30"]
[EventType "tourn"]
[EventCountry "SWE"]
[SourceTitle "playchess.com"]
[Source "ChessBase"]
[SourceQuality "1"]
[TimeControl "40/5400+30:1800+30"]

{[%evp 8,49,22,32767,32767,32767,32767,32767,32767,-28,32767,32767,32767,32767,8,14,24,32767,32767,13,32,18,14,12,26,13,16,14,15,14,25,33,45,13,32767,32767,32767,0,11,32767,14,32767,32767,19]} 1. e4 {[%emt 0:00:00]} c5 {[%emt 0:00:00]} 2. Nf3 {[%emt 0:00:00]} Nc6 {[%emt 0:00:00]} 3. Bb5 {[%emt 0:00:04]} g6 {[%emt 0:00:00]} 4. Bxc6 {[%emt 0:00:05]} bxc6 {[%emt 0:00:00]} 5. O-O {[%emt 0:03:24]} Bg7 {[%emt 0:00:00]} 6. c3 {[%emt 0:02:10]} Nf6 {[%emt 0:01:50]} 7. d3 {[%emt 0:09:22]} O-O {[%emt 0:00:17]} 8. Be3 {[%emt 0:00:26]} d6 {[%emt 0:00:07]} 9. h3 {[%emt 0:00:16]} e5 {[%emt 0:07:13] B31: Sizilianisch (Rossolimo-Variante)} (9... a5 10. Nbd2 Ba6 11. Qc2 e5 12. Rfd1 a4 13. a3 Qa5 14. d4 c4 15. Nf1 exd4 16. Bxd4 Rad8 17. Ne3 {½-½ (40) Krejci,J (2521)-Kilgus,G (2429) Vienna 2015}) 10. Nbd2 {[%emt 0:02:05]} Ne8 $146 {[%emt 0:02:14]} ({Vorgänger:} 10... h6 11. Qa4 Qc7 12. Nc4 Be6 13. Na5 {½-½ (38) Silar,L-Simek,P (2165) Czechia 1997}) 11. d4 {[%emt 0:02:53]} exd4 {[%emt 0:04:32]} 12. cxd4 {[%emt 0:00:09]} cxd4 {[%emt 0:00:03]} 13. Bxd4 {[%emt 0:00:47]} ({But not} 13. Nxd4 c5 $15) 13... Nf6 {[%emt 0:03:46]} 14. e5 {[%emt 0:02:27]} dxe5 {[%emt 0:02:35]} 15. Bxe5 {[%emt 0:00:09]} Be6 {[%emt 0:00:15]} 16. Qc2 {[%emt 0:08:38]} Bd5 {[%emt 0:06:11]} 17. Qc3 {[%emt 0:03:50]} Nh5 {[%emt 0:00:24]} 18. Bxg7 Nxg7 {[%emt 0:00:03]} 19. Ne5 {[%emt 0:10:43]} Rc8 {[%emt 0:04:28]} 20. b3 {[%emt 0:02:50]} f6 {[%emt 0:03:50]} 21. Ng4 {[%emt 0:04:58]} f5 {[%emt 0:07:04]} 22. Ne5 {[%emt 0:03:30]} Ne6 {[%emt 0:01:59]} 23. Ndf3 {[%emt 0:01:00]} Qf6 {[%emt 0:04:24]} 24. Rac1 {[%emt 0:02:03]} Qg7 {[%emt 0:00:07]} 25. Rfe1 $11 {[%emt 0:01:46]} g5 {[%emt 0:14:41]} 26. Nxc6 {[%emt 0:04:36]} Rxc6 {[%emt 0:01:16]} 27. Qxg7+ {[%emt 0:01:06]} Nxg7 {[%emt 0:00:02]} 28. Rxc6 {[%emt 0:01:55]} Bxc6 {[%emt 0:00:03]} 29. Nxg5 {[%emt 0:00:29]} h6 {[%emt 0:02:17]} 0-1

[Event "SWE-ch Masters 2018"]
[Site "Ronneby"]
[Date "2018.07.05"]
[Round "6"]
[White "Bit-Narva, David"]
[Black "Adler, Bo"]
[Result "0-1"]
[ECO "B00"]
[WhiteElo "1977"]
[BlackElo "2177"]
[Annotator "NA"]
[PlyCount "54"]
[EventDate "2018.06.30"]
[EventType "tourn"]
[EventCountry "SWE"]
[SourceTitle "playchess.com"]
[Source "ChessBase"]
[SourceQuality "1"]
[TimeControl "40/5400+30:1800+30"]

{[%evp 13,45,12,32,28,39,-63,-50,-148,32767,-156,-138,-145,-203,32767,32767,32767,-207,-196,-207,-193,-213,-208,32767,32767,32767,-164,32767,-158,32767,32767,-189,-286,-300,-386]} 1. e4 {[%emt 0:00:07]} Nc6 {[%emt 0:02:18]} 2. d4 {[%emt 0:00:10]} d5 {[%emt 0:00:40]} 3. e5 {[%emt 0:01:18]} Bf5 {[%emt 0:00:24]} 4. Bb5 {[%emt 0:02:48]} e6 {[%emt 0:00:54]} 5. Ne2 {[%emt 0:03:42] B00: Queen's Fianchetto Defence, Nimzowitsch Defence} Nge7 {[%emt 0:01:19]} 6. O-O {[%emt 0:00:46]} a6 {[%emt 0:04:06]} 7. Bd3 $146 {[%emt 0:00:10]} ({Predecessor:} 7. Ba4 f6 8. f4 Qd7 9. Nd2 Nc8 10. Bxc6 Qxc6 11. c3 Bg6 12. g4 Ne7 {½-½ (94) Colias,B-West,G (2260) London 1985}) 7... Bxd3 {[%emt 0:01:18]} 8. Qxd3 {[%emt 0:00:09]} Nf5 {[%emt 0:07:58]} 9. g4 {[%emt 0:10:56]} ({White should try} 9. c3 $11) 9... Nh4 {[%emt 0:03:35]} 10. Ng3 {[%emt 0:00:47]} (10. c3 $15) 10... Nxd4 {[%emt 0:01:01]} 11. f4 {[%emt 0:01:55]} Nc6 {[%emt 0:05:24]} 12. Be3 {[%emt 0:04:58]} d4 {[%emt 0:11:32]} 13. Bf2 {[%emt 0:05:05]} Qd5 {[%emt 0:00:09]} 14. Qe4 {[%emt 0:01:00]} Qxe4 {[%emt 0:02:23]} 15. Nxe4 {[%emt 0:00:07]} Ng6 {[%emt 0:01:21]} 16. Bg3 {[%emt 0:00:04]} h5 {[%emt 0:00:56]} 17. h3 {[%emt 0:00:14]} Be7 {[%emt 0:00:51]} 18. Nbd2 {[%emt 0:00:29]} hxg4 {[%emt 0:00:26]} 19. hxg4 {[%emt 0:00:09]} O-O-O {[%emt 0:00:26]} 20. Nf3 {[%emt 0:00:36]} f6 {[%emt 0:05:15]} 21. exf6 {[%emt 0:05:17]} gxf6 {[%emt 0:05:13]} 22. a3 {[%emt 0:02:06]} (22. f5 $142 exf5 23. gxf5) 22... Rdg8 {[%emt 0:01:48]} 23. Kf2 $19 {[%emt 0:04:48]} Nxf4 {[%emt 0:01:11]} 24. Bxf4 {[%emt 0:17:51]} Rxg4 {[%emt 0:00:09]} 25. Bxc7 {[%emt 0:02:08]} Kxc7 {[%emt 0:02:15]} 26. Rae1 {[%emt 0:00:31]} f5 {[%emt 0:06:58]} 27. Ned2 {[%emt 0:00:19]} e5 {[%emt 0:01:10]} 0-1

[Event "SWE-ch Masters 2018"]
[Site "Ronneby"]
[Date "2018.07.06"]
[Round "7"]
[White "Walinder, Lars"]
[Black "Adler, Bo"]
[Result "1-0"]
[ECO "A21"]
[WhiteElo "2231"]
[BlackElo "2177"]
[Annotator "NA"]
[PlyCount "43"]
[EventDate "2018.06.30"]
[EventType "tourn"]
[EventCountry "SWE"]
[SourceTitle "playchess.com"]
[Source "ChessBase"]
[SourceQuality "1"]
[TimeControl "40/5400+30:1800+30"]

{[%evp 8,39,62,32767,72,32767,32767,83,64,32767,55,66,54,66,82,16,145,56,60,58,58,12,38,27,125,119,274,32767,492,491,703,774,770,806]} 1. c4 {[%emt 0:00:00]} e5 {[%emt 0:02:11]} 2. Nc3 {[%emt 0:00:00]} f5 {[%emt 0:03:13]} 3. d4 {[%emt 0:00:57]} e4 {[%emt 0:00:35]} 4. Nh3 {[%emt 0:00:41]} Nf6 {[%emt 0:02:42] A21: Englische Eröffnung} 5. Bg5 {[%emt 0:00:45]} Be7 {[%emt 0:00:32]} 6. e3 {[%emt 0:00:49]} O-O {[%emt 0:01:07]} 7. Nf4 {[%emt 0:00:33]} d6 {[%emt 0:09:15]} 8. Be2 {[%emt 0:05:48]} c6 {[%emt 0:09:25]} 9. h4 {[%emt 0:04:00]} Na6 {[%emt 0:11:34]} 10. Qb3 $146 {[%emt 0:09:34]} ({Vorgänger:} 10. c5 d5 11. Bxa6 bxa6 12. Qa4 {0-1 (33) Titz,H (2305)-Leitner,K (2162) Frohnleiten 2000}) 10... Nc7 {[%emt 0:01:10]} 11. d5 {[%emt 0:07:52]} (11. O-O-O $16) 11... Nd7 {[%emt 0:12:39] [#]} (11... c5 $11 {bleibt in der Remisbreite.}) 12. O-O-O {[%emt 0:16:56]} (12. dxc6 $1 $16 Nc5 13. cxb7 (13. Bxe7 Qxe7 14. cxb7 Nxb3 $11) 13... Bxb7 14. Bxe7 Qxe7 15. Qa3) 12... Nc5 {[%emt 0:06:56]} 13. Qc2 {[%emt 0:01:49]} a5 $1 {[%emt 0:00:07]} 14. Na4 {[%emt 0:06:09]} Nxa4 $1 {[%emt 0:01:23]} 15. Qxa4 {[%emt 0:00:03]} b5 {[%emt 0:01:14] [#]} ({Lieber} 15... c5 $14) 16. Qc2 $1 {[%emt 0:02:24]} ({Don't play} 16. cxb5 $6 cxb5 17. Qc2 Bd7 $14) 16... bxc4 {[%emt 0:14:09]} (16... c5 $16) 17. dxc6 {[%emt 0:01:38]} d5 $2 {[%emt 0:03:02] [#]} (17... Kh8 18. Bxc4 Ba6 19. Bxe7 Qxe7) 18. Bxc4 $1 {[%emt 0:01:16]} Bxg5 {[%emt 0:00:40]} 19. Rxd5 {[%emt 0:07:58]} Nxd5 $18 {[%emt 0:00:27]} 20. Bxd5+ {[%emt 0:00:10]} Kh8 {[%emt 0:00:27]} 21. Ng6+ {[%emt 0:01:00]} hxg6 {[%emt 0:00:16]} 22. hxg5# {[%emt 0:00:08]} 1-0

[Event "SWE-ch Masters 2018"]
[Site "Ronneby"]
[Date "2018.07.06"]
[Round "7"]
[White "Nyander, Joakim"]
[Black "Lindvall, Johannes"]
[Result "1/2-1/2"]
[ECO "A25"]
[WhiteElo "2203"]
[BlackElo "2010"]
[Annotator "NA"]
[PlyCount "65"]
[EventDate "2018.06.30"]
[EventType "tourn"]
[EventCountry "SWE"]
[SourceTitle "playchess.com"]
[Source "ChessBase"]
[SourceQuality "1"]
[TimeControl "40/5400+30:1800+30"]

{[%evp 13,41,11,30,20,40,26,29,30,42,33,41,19,39,16,16,17,30,27,28,15,15,-50,-35,-50,21,2,15,32767,38,0]} 1. c4 {[%emt 0:00:00]} e5 {[%emt 0:00:05]} 2. g3 {[%emt 0:00:00]} Nc6 {[%emt 0:00:14]} 3. Nc3 {[%emt 0:01:08]} g6 {[%emt 0:00:13]} 4. Bg2 {[%emt 0:01:25]} Bg7 {[%emt 0:00:17]} 5. e4 {[%emt 0:01:17]} Nge7 {[%emt 0:05:57]} 6. Nge2 {[%emt 0:00:53]} d6 {[%emt 0:00:27]} 7. d3 {[%emt 0:02:28]} Be6 {[%emt 0:02:41]} 8. Nd5 {[%emt 0:06:24]} O-O {[%emt 0:01:37]} 9. O-O {[%emt 0:02:45]} Qd7 {[%emt 0:01:06]} 10. Bg5 {[%emt 0:01:48] A26: Englische Eröffnung (Sizilianisch im Anzug)} f6 {[%emt 0:05:07]} 11. Be3 {[%emt 0:00:26]} Rf7 {[%emt 0:05:33]} (11... f5 12. f4 Rae8 13. Qd2 Nd4 14. Nxd4 exd4 15. Nxe7+ Rxe7 16. Bf2 fxe4 17. Bxe4 Bxc4 18. Bxb7 Be6 19. Bg2 c5 {0-1 (46) Wang,Y (2690)-Andriasian,Z (2586) chess.com INT 2018}) 12. Qd2 {[%emt 0:05:15]} Raf8 {[%emt 0:01:59]} 13. Rad1 {[%emt 0:05:51]} f5 {[%emt 0:03:06]} 14. f3 {[%emt 0:01:10] LiveBook: 4 Games} Nc8 {[%emt 0:04:47]} 15. exf5 {[%emt 0:10:33]} Bxf5 {[%emt 0:05:29]} 16. d4 $146 {[%emt 0:06:29]} ({Vorgänger:} 16. Nec3 Nd4 17. Ne4 Bxe4 18. fxe4 c6 19. Nc3 Ne7 20. Rxf7 Rxf7 {½-½ (31) Cabrera,G (2195)-Llanos,G (2360) La Carlota 1995}) 16... Bh3 {[%emt 0:03:03]} 17. f4 {[%emt 0:05:19]} (17. b3 $11) 17... Bxg2 {[%emt 0:04:56]} 18. Kxg2 {[%emt 0:00:10]} Qf5 {[%emt 0:16:14]} (18... exf4 $15 19. Bxf4 N8e7) 19. b3 {[%emt 0:15:07]} exf4 {[%emt 0:08:10]} 20. Rxf4 {[%emt 0:04:04]} Qe6 {[%emt 0:01:59]} 21. Qd3 $11 {[%emt 0:01:55]} Nd8 {[%emt 0:06:58]} 22. Rdf1 {[%emt 0:04:54]} c6 {[%emt 0:03:56]} 23. Rxf7 {[%emt 0:01:30]} Rxf7 {[%emt 0:01:59]} 24. Rxf7 {[%emt 0:03:07]} Qxf7 {[%emt 0:01:24]} 25. Ndf4 {[%emt 0:00:33]} d5 {[%emt 0:02:59]} 26. cxd5 {[%emt 0:04:00]} g5 {[%emt 0:00:35]} 27. Nh3 {[%emt 0:02:17]} Qxd5+ {[%emt 0:00:05]} 28. Kg1 {[%emt 0:01:39]} h6 {[%emt 0:02:11]} 29. Nf2 {[%emt 0:07:15]} Nd6 {[%emt 0:01:19]} 30. Qg6 {[%emt 0:01:48]} N8f7 {[%emt 0:03:51]} 31. Ng4 {[%emt 0:00:43]} Kf8 {[%emt 0:02:14]} 32. Kf2 {[%emt 0:01:24]} Qf5+ {[%emt 0:02:07]} 33. Qxf5 {[%emt 0:00:15]} 1/2-1/2

[Event "SWE-ch Masters 2018"]
[Site "Ronneby"]
[Date "2018.07.06"]
[Round "7"]
[White "Laksman, Efraim"]
[Black "Wengholm, Anders"]
[Result "1/2-1/2"]
[ECO "A30"]
[WhiteElo "2184"]
[BlackElo "2186"]
[Annotator "NA"]
[PlyCount "47"]
[EventDate "2018.06.30"]
[EventType "tourn"]
[EventCountry "SWE"]
[SourceTitle "playchess.com"]
[Source "ChessBase"]
[SourceQuality "1"]
[TimeControl "40/5400+30:1800+30"]

1. c4 {[%emt 0:00:00]} c5 {[%emt 0:00:00]} 2. Nf3 {[%emt 0:00:00]} b6 {[%emt 0:03:08]} 3. d4 {[%emt 0:01:07]} cxd4 {[%emt 0:00:08]} 4. Nxd4 {[%emt 0:00:02]} Bb7 {[%emt 0:00:25]} 5. Nc3 {[%emt 0:00:08]} a6 {[%emt 0:05:56] A30: Symmetrical English: Double Fianchetto and Hedgehog} 6. e4 {[%emt 0:00:29]} d6 {[%emt 0:00:16] LiveBook: 15 Games} 7. Be2 {[%emt 0:01:14]} Nd7 {[%emt 0:02:53]} 8. O-O {[%emt 0:00:34]} Ngf6 {[%emt 0:00:09]} 9. f3 {[%emt 0:00:13]} e6 {[%emt 0:00:10]} 10. Rf2 $146 {[%emt 0:14:43]} ({Predecessor:} 10. Be3 Be7 11. Rc1 O-O 12. a3 Rc8 13. b4 Qc7 14. Qd2 Qb8 15. Rfd1 Bd8 16. Kh1 Re8 17. Bg1 Bc7 18. Rb1 h5 19. Qe1 {½-½ (95) Nepomniachtchi,I (2714)-Kamsky,G (2683) Sochi 2015}) 10... Be7 {[%emt 0:00:42]} 11. Bf1 {[%emt 0:00:14]} O-O {[%emt 0:00:30]} 12. Be3 {[%emt 0:00:19]} Qc7 {[%emt 0:01:47]} 13. Rc1 {[%emt 0:00:18]} Rfe8 {[%emt 0:00:23]} 14. Rd2 {[%emt 0:00:26]} Rac8 {[%emt 0:00:26]} 15. b3 {[%emt 0:02:34]} d5 {[%emt 0:28:21]} 16. cxd5 {[%emt 0:18:40]} exd5 {[%emt 0:00:24]} 17. Nce2 {[%emt 0:00:32]} Qb8 {[%emt 0:01:49]} 18. Rxc8 {[%emt 0:00:06]} Qxc8 {[%emt 0:00:54]} 19. Rc2 {[%emt 0:01:18]} Qa8 {[%emt 0:00:27]} 20. exd5 {[%emt 0:01:06]} Nxd5 {[%emt 0:00:40]} 21. Bf2 {[%emt 0:00:18]} g6 $11 {[%emt 0:33:09]} 22. Nc3 {[%emt 0:06:32]} Nxc3 {[%emt 0:02:19]} 23. Rxc3 {[%emt 0:00:17]} Nf6 {[%emt 0:00:05]} 24. Nc2 {[%emt 0:13:07]} 1/2-1/2